fUSD/lending_fUSD_20251129
["ID","MTS","AMOUNT","RATE_DAILY","PERIOD"]
[395058410,1764385844446,-160.67276753,0.00017521,2]
[395058411,1764385844455,-1001.4742826,0.00017521,2]
[395058412,1764385844464,-504.15228854,0.00017521,2]
[395058413,1764385844473,-1001.67947044,0.00017521,2]
[395058414,1764385844482,-183.87070732,0.00017521,2]
[395058415,1764385844492,-1014.4840284,0.00017521,2]
[395058416,1764385844502,-400.48575779,0.00017521,2]
[395058417,1764385844511,-1000.0,0.00017521,2]
[395058418,1764385844520,-1000.0,0.00017521,2]
[395058419,1764385844529,-502.39177324,0.00017521,2]
[395058420,1764385844538,-150.0,0.00017521,2]
[395058421,1764385844547,-501.07652407,0.00017521,2]
[395058422,1764385844556,-1000.9692977,0.00017521,2]
[395058423,1764385844565,-780.03542733,0.00017521,2]
[395058424,1764385844575,-1000.0,0.00017521,2]
[395058425,1764385844584,-640.08976145,0.00017521,2]
[395058426,1764385844593,-1000.0,0.00017521,2]
[395058427,1764385844602,-1001.27735448,0.00017521,2]
[395058428,1764385844611,-1000.0,0.00017521,2]
[395058429,1764385844620,-1000.0,0.00017521,2]
[395058430,1764385844629,-1000.0,0.00017521,2]
[395058431,1764385844638,-1000.0,0.00017521,2]
[395058432,1764385844648,-569.88588045,0.00017521,2]
[395058433,1764385844657,-500.0,0.00017521,2]
[395058434,1764385844666,-1000.0,0.00017521,2]
[395058435,1764385844675,-1001.84292718,0.00017521,2]
[395058436,1764385844684,-501.00820902,0.00017521,2]
[395058437,1764385844694,-1000.0,0.00017521,2]
[395058438,1764385844703,-859.11444103,0.00017521,2]
[395058439,1764385844712,-653.25431791,0.00017521,2]
[395058440,1764385844722,-500.0,0.00017521,2]
[395058441,1764385844731,-500.0,0.00017521,2]
[395058442,1764385844740,-500.0,0.00017521,2]
[395058443,1764385844749,-500.0,0.00017521,2]
[395058444,1764385844758,-500.0,0.00017521,2]
[395058445,1764385844768,-500.0,0.00017521,2]
[395058446,1764385844777,-500.0,0.00017521,2]
[395058447,1764385844786,-500.0,0.00017521,2]
[395058448,1764385844796,-500.0,0.00017521,2]
[395058449,1764385844805,-500.0,0.00017521,2]
[395058450,1764385844814,-500.0,0.00017521,2]
[395058451,1764385844824,-500.0,0.00017521,2]
[395058452,1764385844834,-500.0,0.00017521,2]
[395058453,1764385844843,-500.0,0.00017521,2]
[395058454,1764385844852,-500.0,0.00017521,2]
[395058455,1764385844861,-500.0,0.00017521,2]
[395058456,1764385844871,-500.0,0.00017521,2]
[395058457,1764385844880,-500.0,0.00017521,2]
[395058458,1764385844889,-500.0,0.00017521,2]
[395058459,1764385844898,-500.0,0.00017521,2]
[395058460,1764385844907,-500.0,0.00017521,2]
[395058461,1764385844916,-500.0,0.00017521,2]
[395058462,1764385844926,-500.0,0.00017521,2]
[395058463,1764385844936,-500.0,0.00017521,2]
[395058464,1764385844945,-500.0,0.00017521,2]
[395058465,1764385844955,-500.0,0.00017521,2]
[395058466,1764385844965,-500.0,0.00017521,2]
[395058467,1764385844974,-500.0,0.00017521,2]
[395058468,1764385844983,-500.0,0.00017521,2]
[395058469,1764385844992,-500.0,0.00017521,2]
[395058470,1764385845001,-500.0,0.00017521,2]
[395058471,1764385845010,-500.0,0.00017521,2]
[395058472,1764385845020,-500.0,0.00017521,2]
[395058473,1764385845029,-500.0,0.00017521,2]
[395058474,1764385845038,-500.0,0.00017521,2]
[395058475,1764385845048,-351.0,0.00017534,2]
[395058476,1764385845057,-200.0,0.00017551,2]
[395058477,1764385845067,-200.0,0.00017551,2]
[395058478,1764385845076,-511.34890298,0.00017568,2]
[395058479,1764385845086,-500.0,0.00017568,2]
[395058480,1764385845095,-206.13564344,0.00017568,2]
[395058481,1764385845104,-760.0,0.00017568,2]
[395058482,1764385845115,-500.0,0.00017568,2]
[395058483,1764385845124,-436.0,0.00017568,2]
[395058484,1764385845134,-500.0,0.00017568,2]
[395058485,1764385845143,-690.0,0.00017568,2]
[395058486,1764385845152,-500.0,0.00017568,2]
[395058487,1764385845161,-500.0,0.00017568,2]
[395058488,1764385845171,-500.0,0.00017568,2]
[395058489,1764385845180,-803.83,0.0001759,2]
[395058490,1764385845190,-2000.0,0.00017616,2]
[395058491,1764385845199,-2000.0,0.00017616,2]
[395058492,1764385845212,-4619.0,0.00017638,2]
[395058493,1764385845221,-1000.0,0.00017647,2]
[395058494,1764385845231,-166.66,0.0001767,2]
[395058495,1764385845240,-200.0,0.0001769,2]
[395058496,1764385845250,-500.0,0.00017705,2]
[395058497,1764385845260,-760.0,0.00017705,2]
[395058498,1764385845270,-500.0,0.00017705,2]
[395058499,1764385845280,-436.0,0.00017705,2]
[395058500,1764385845292,-500.0,0.00017705,2]
[395058501,1764385845302,-690.0,0.00017705,2]
[395058502,1764385845311,-500.0,0.00017705,2]
[395058503,1764385845320,-500.0,0.00017705,2]
[395058504,1764385845330,-500.0,0.00017705,2]
[395058505,1764385845340,-229.96,0.00017755,2]
[395058506,1764385845349,-278.0,0.00017772,2]
[395058507,1764385845358,-500.0,0.00017808,2]
[395058508,1764385845367,-820.0,0.00017812,2]
[395058509,1764385845376,-500.0,0.00017842,2]
[395058510,1764385845386,-760.0,0.00017842,2]
[395058511,1764385845395,-500.0,0.00017842,2]
[395058512,1764385845404,-436.0,0.00017842,2]
[395058513,1764385845413,-500.0,0.00017842,2]
[395058514,1764385845423,-690.0,0.00017842,2]
[395058515,1764385845432,-503.58047396,0.00017842,2]
[395058516,1764385845441,-500.0,0.00017842,2]
[395058517,1764385845450,-262.3802132,0.00017842,2]
[395058518,1764385845460,-4619.0,0.0001786,2]
[395058519,1764385845469,-803.83593542,0.00017864,2]
[395058520,1764385845478,-640.24385345,0.00017875,2]
[395058521,1764385845487,-151.0,0.00017875,2]
[395058522,1764385845496,-4619.0,0.00017924,2]
[395058523,1764385845505,-500.0,0.00017945,2]
[395058524,1764385845515,-4619.0,0.0001797,2]
[395058525,1764385845524,-500.0,0.0001797,2]
[395058526,1764385845533,-500.0,0.0001797,2]
[395058527,1764385845542,-500.0,0.0001797,2]
[395058528,1764385845551,-500.0,0.0001797,2]
[395058529,1764385845560,-512.0,0.0001797,2]
[395058530,1764385845569,-500.0,0.00017979,2]
[395058531,1764385845579,-760.0,0.00017979,2]
[395058532,1764385845589,-500.0,0.00017979,2]
[395058533,1764385845600,-436.0,0.00017979,2]
[395058535,1764385845609,-500.0,0.00017979,2]
[395058537,1764385845618,-690.0,0.00017979,2]
[395058538,1764385845628,-500.0,0.00017979,2]
[395058539,1764385845637,-2000.0,0.00017989,2]
[395058540,1764385845646,-2000.0,0.00017989,2]
[395058541,1764385845655,-2000.0,0.00017989,2]
[395058542,1764385845664,-778.9,0.00017989,2]
[395058543,1764385845674,-1003.7152,0.00017999,2]
[395058544,1764385845683,-278.0,0.00018017,2]
[395058545,1764385845693,-820.0,0.00018045,2]
[395058546,1764385845702,-513.02,0.00018051,2]
[395058547,1764385845712,-170.1,0.00018053,2]
[395058548,1764385845721,-415.8000054,0.00018068,2]
[395058549,1764385845730,-295.41330567,0.00018068,2]
[395058550,1764385845740,-501.33556508,0.00018068,2]
[395058551,1764385845749,-217.40010715,0.00018068,2]
[395058552,1764385845759,-986.18194228,0.00018068,2]
[395058553,1764385845768,-511.66567049,0.00018068,2]
[395058554,1764385845777,-1500.0,0.00018068,2]
[395058555,1764385845787,-1503.51762562,0.00018068,2]
[395058556,1764385845796,-489.62642333,0.00018068,2]
[395058557,1764385845805,-500.99844616,0.00018068,2]
[395058558,1764385845815,-1500.0,0.00018068,2]
[395058559,1764385845825,-1009.43699835,0.00018068,2]
[395058560,1764385845835,-500.0,0.00018082,2]
[395058561,1764385845844,-1000.0,0.00018082,2]
[395058562,1764385845853,-207.4,0.00018098,2]
[395058563,1764385845863,-200.0,0.00018099,2]
[395058564,1764385845872,-200.0,0.00018099,2]
[395058565,1764385845881,-500.0,0.00018116,2]
[395058566,1764385845891,-760.0,0.00018116,2]
[395058567,1764385845900,-500.0,0.00018116,2]
[395058568,1764385845909,-436.0,0.00018116,2]
[395058569,1764385845918,-500.0,0.00018116,2]
[395058570,1764385845927,-690.0,0.00018116,2]
[395058571,1764385845936,-494.73419973,0.00018116,2]
[395058572,1764385845945,-820.0,0.00018132,2]
[395058573,1764385845955,-2500.0,0.00018164,2]
[395058574,1764385845964,-2500.0,0.00018164,2]
[395058575,1764385845973,-166.66,0.00018201,2]
[395058576,1764385845983,-500.0,0.00018219,2]
[395058577,1764385845992,-2351.0,0.00018247,2]
[395058578,1764385846003,-500.0,0.00018253,2]
[395058579,1764385846012,-760.0,0.00018253,2]
[395058580,1764385846021,-500.0,0.00018253,2]
[395058581,1764385846031,-436.0,0.00018253,2]
[395058582,1764385846040,-500.0,0.00018253,2]
[395058583,1764385846049,-690.0,0.00018253,2]
[395058584,1764385846058,-4619.0,0.00018284,2]
[395058585,1764385846068,-165.98,0.00018308,2]
[395058586,1764385846077,-310.4430786,0.00018348,2]
[395058587,1764385846087,-500.0,0.00018356,2]
[395058588,1764385846097,-34278.2,0.00018356,2]
[395058589,1764385846106,-500.0,0.0001839,2]
[395058590,1764385846116,-760.0,0.0001839,2]
[395058591,1764385846125,-271.28325517,0.0001839,2]
[395058592,1764385846135,-436.0,0.0001839,2]
[395058593,1764385846144,-179.9390281,0.0001839,2]
[395058594,1764385846154,-690.0,0.0001839,2]
[395058595,1764385846163,-151.0,0.00018421,2]
[395058596,1764385846172,-322.6107,0.00018421,2]
[395058597,1764385846181,-287.61899177,0.00018421,2]
[395058598,1764385846194,-663.93287602,0.00018423,2]
[395058599,1764385846204,-151.0,0.00018423,2]
[395058600,1764385846217,-264.33644176,0.00018493,2]
[395058601,1764385846226,-227.99685643,0.00018511,2]
[395058602,1764385846236,-500.0,0.00018527,2]
[395058604,1764385846458,-760.0,0.00018527,2]
[395058605,1764385846469,-436.0,0.00018527,2]
[395058606,1764385846478,-690.0,0.00018527,2]
[395058607,1764385846487,-1199.42912973,0.00018616,2]
[395058608,1764385846496,-1839.24529949,0.00018616,2]
[395058609,1764385846505,-200.0,0.00018647,2]
[395058610,1764385846515,-200.0,0.00018647,2]
[395058611,1764385846524,-379.31286521,0.00018651,2]
[395058612,1764385846533,-1437.59368086,0.0001866,2]
[395058613,1764385846542,-500.0,0.00018664,2]
[395058614,1764385846551,-760.0,0.00018664,2]
[395058615,1764385846560,-436.0,0.00018664,2]
[395058616,1764385846569,-690.0,0.00018664,2]
[395058617,1764385846578,-2326.40842248,0.00018712,2]
[395058618,1764385846587,-1003.21721078,0.00018712,2]
[395058619,1764385846596,-166.66,0.00018732,2]
[395058620,1764385846606,-1000.0,0.0001876,2]
[395058621,1764385846615,-150.74,0.000188,2]
[395058622,1764385846625,-150.74,0.000188,2]
[395058623,1764385846635,-150.74,0.000188,2]
[395058624,1764385846645,-150.74,0.000188,2]
[395058625,1764385846655,-150.74,0.000188,2]
[395058626,1764385846664,-150.74,0.000188,2]
[395058627,1764385846673,-150.74,0.000188,2]
[395058628,1764385846683,-150.74,0.000188,2]
[395058629,1764385846692,-150.74,0.000188,2]
[395058630,1764385846701,-150.74,0.000188,2]
[395058631,1764385846710,-150.74,0.000188,2]
[395058632,1764385846720,-150.74,0.000188,2]
[395058633,1764385846729,-150.74,0.000188,2]
[395058634,1764385846738,-150.74,0.000188,2]
[395058635,1764385846750,-150.74,0.000188,2]
[395058636,1764385846759,-150.74,0.000188,2]
[395058637,1764385846769,-334.43412171,0.00018801,2]
[395058638,1764385846779,-760.0,0.00018801,2]
[395058639,1764385846789,-436.0,0.00018801,2]
[395058640,1764385846799,-690.0,0.00018801,2]
[395058641,1764385846809,-1000.5498,0.00018899,2]
[395058642,1764385846818,-760.0,0.00018938,2]
[395058643,1764385846828,-436.0,0.00018938,2]
[395058644,1764385846838,-690.0,0.00018938,2]
[395058645,1764385846847,-688.49839244,0.00018971,2]
[395058646,1764385846856,-200.8894483,0.00018971,2]
[395058647,1764385846865,-807.99822908,0.00019,2]
[395058648,1764385846876,-31595.57856715,0.00019,2]
[395058649,1764385846886,-2557.06699941,0.00019,2]
[395058650,1764385846895,-300.0,0.00019,2]
[395058651,1764385846904,-5001.59833,0.00019,2]
[395058652,1764385846914,-267.01695085,0.00019044,5]
[395058653,1764385846924,-760.0,0.00019075,2]
[395058654,1764385846934,-436.0,0.00019075,2]
[395058655,1764385846944,-690.0,0.00019075,2]
[395058656,1764385846955,-513.02,0.00019077,2]
[395058657,1764385846965,-500.0,0.00019105,2]
[395058658,1764385846974,-170.1,0.0001912,2]
[395058659,1764385846983,-500.0,0.00019178,2]
[395058660,1764385846992,-500.0,0.00019178,2]
[395058661,1764385847002,-500.0,0.00019178,2]
[395058662,1764385847011,-500.0,0.00019178,2]
[395058663,1764385847020,-500.0,0.00019178,2]
[395058664,1764385847030,-500.0,0.00019178,2]
[395058665,1764385847039,-500.0,0.00019178,2]
[395058666,1764385847048,-500.0,0.00019178,2]
[395058667,1764385847058,-500.0,0.00019178,2]
[395058668,1764385847068,-500.0,0.00019178,2]
[395058669,1764385847078,-151.0,0.00019178,2]
[395058670,1764385847088,-200.0,0.00019178,2]
[395058671,1764385847097,-16336.1302103,0.00019179,2]
[395058672,1764385847106,-200.0,0.00019195,2]
[395058673,1764385847117,-200.0,0.00019195,2]
[395058674,1764385847127,-760.0,0.00019212,2]
[395058675,1764385847138,-436.0,0.00019212,2]
[395058676,1764385847147,-690.0,0.00019212,2]
[395058677,1764385847157,-150.0,0.00019226,5]
[395058678,1764385847166,-151.95146767,0.00019226,5]
[395058679,1764385847176,-379.15,0.00019266,2]
[395058680,1764385847185,-165.98,0.00019271,2]
[395058681,1764385847196,-13967.408314,0.00019279,2]
[395058682,1764385847206,-4161.6705469,0.00019279,2]
[395058683,1764385847219,-41527.3833264,0.00019279,2]
[395058684,1764385847229,-562.48,0.00019282,2]
[395058685,1764385847239,-551.8,0.00019282,2]
[395058686,1764385847251,-551.8,0.00019282,2]
[395058687,1764385847260,-551.8,0.00019282,2]
[395058688,1764385847269,-551.8,0.00019282,2]
[395058689,1764385847279,-940.08,0.00019282,2]
[395058690,1764385847292,-328.28,0.00019288,2]
[395058691,1764385847302,-760.0,0.00019349,2]
[395058692,1764385847311,-436.0,0.00019349,2]
[395058693,1764385847320,-690.0,0.00019349,2]
[395058694,1764385847330,-1000.0,0.00019438,2]
[395058695,1764385847339,-748.786,0.00019472,2]
[395058696,1764385847347,-909.0,0.00019472,2]
[395058697,1764385847357,-760.0,0.00019486,2]
[395058698,1764385847366,-436.0,0.00019486,2]
[395058699,1764385847375,-690.0,0.00019486,2]
[395058700,1764385847385,-758.69740952,0.00019519,2]
[395058701,1764385847395,-379.15,0.0001954,2]
[395058702,1764385847404,-328.28,0.00019562,2]
[395058703,1764385847413,-1000.0,0.00019607,2]
[395058704,1764385847423,-760.0,0.00019623,2]
[395058705,1764385847432,-436.0,0.00019623,2]
[395058706,1764385847441,-690.0,0.00019623,2]
[395058707,1764385847450,-3645.08335,0.00019666,2]
[395058708,1764385847459,-250.0,0.000197,2]
[395058709,1764385847468,-150.0,0.00019702,2]
[395058710,1764385847477,-1321.0,0.00019702,2]
[395058711,1764385847486,-723.0,0.00019702,2]
[395058712,1764385847495,-156.587,0.00019726,2]
[395058713,1764385847504,-229.96,0.00019727,2]
[395058714,1764385847514,-200.0,0.00019743,2]
[395058715,1764385847524,-200.0,0.00019743,2]
[395058716,1764385847534,-760.0,0.0001976,2]
[395058717,1764385847543,-436.0,0.0001976,2]
[395058718,1764385847552,-690.0,0.0001976,2]
[395058719,1764385847563,-3116.5500539,0.00019787,2]
[395058720,1764385847572,-928.5942156,0.00019787,2]
[395058721,1764385847580,-9266.0116921,0.00019787,2]
[395058722,1764385847589,-151.0,0.0001979,2]
[395058723,1764385847598,-334.5472959,0.0001979,2]
[395058724,1764385847607,-298.26089446,0.0001979,2]
[395058725,1764385847616,-379.17,0.00019814,2]
[395058726,1764385847625,-400.0,0.00019863,2]
[395058727,1764385847635,-760.0,0.00019897,2]
[395058728,1764385847644,-436.0,0.00019897,2]
[395058729,1764385847653,-690.0,0.00019897,2]
[395058730,1764385847663,-1000.0,0.0001997,2]
[395058731,1764385847672,-500.0,0.0001997,2]
[395058732,1764385847681,-3356.7390105,0.00019988,2]
[395058733,1764385847690,-500.0,0.00019999,2]
[395058734,1764385847700,-2912.35845982,0.0002,7]
[395058735,1764385847710,-524.71720165,0.0002,7]
[395058736,1764385847721,-293.27207929,0.0002,20]
[395058737,1764385847731,-16009.75589571,0.0002,14]
[395058738,1764385847741,-5041.75253712,0.0002,4]
[395058739,1764385847750,-21377.0,0.0002,7]
[395058740,1764385847760,-427.35550804,0.0002,7]
[395058741,1764385847770,-236.213,0.0002,2]
[395058742,1764385847779,-163.8,0.0002,14]
[395058743,1764385847788,-151.0,0.0002,2]
[395058744,1764385847798,-151.0,0.0002,2]
[395058745,1764385847807,-151.0,0.0002,2]
[395058746,1764385847816,-151.0,0.0002,2]
[395058747,1764385847826,-151.0,0.0002,2]
[395058748,1764385847835,-151.0,0.0002,2]
[395058749,1764385847844,-151.0,0.0002,2]
[395058750,1764385847854,-151.0,0.0002,2]
[395058751,1764385847863,-150.0,0.0002,7]
[395058752,1764385847872,-300.0,0.0002,5]
[395058753,1764385847882,-185.47,0.0002,2]
[395058754,1764385847891,-201.856121,0.0002,2]
[395058755,1764385847900,-1000.0,0.0002,7]
[395058756,1764385847909,-769.48332399,0.00020034,2]
[395058757,1764385847921,-451.91955049,0.00020034,2]
[395058758,1764385847930,-712.97443204,0.00020034,2]
[395058759,1764385847939,-3292.0,0.0002007,2]
[395058760,1764385847948,-1437.59368086,0.00020113,2]
[395058761,1764385847957,-1000.0,0.00020116,2]
[395058762,1764385847966,-624.16,0.00020187,2]
[395058763,1764385847975,-165.98,0.00020235,2]
[395058764,1764385847984,-162.380719,0.00020274,2]
[395058765,1764385847993,-500.0,0.0002028,2]
[395058766,1764385848002,-200.0,0.00020291,2]
[395058767,1764385848011,-200.0,0.00020291,2]
[395058768,1764385848020,-228.01,0.00020297,2]
[395058769,1764385848029,-379.31286521,0.00020401,2]
[395058770,1764385848038,-228.01,0.00020491,2]
[395058771,1764385848048,-500.00276761,0.000205,2]
[395058772,1764385848057,-1000.0,0.00020548,2]
[395058773,1764385848067,-1000.0,0.00020548,2]
[395058774,1764385848076,-1000.0,0.00020548,2]
[395058775,1764385848085,-1000.0,0.00020548,2]
[395058776,1764385848095,-1000.0,0.00020548,2]
[395058777,1764385848104,-1000.0,0.00020548,2]
[395058778,1764385848115,-1000.0,0.00020548,2]
[395058779,1764385848125,-1000.0,0.00020548,2]
[395058780,1764385848134,-179.0,0.00020548,2]
[395058781,1764385848144,-477.45823225,0.00020548,2]
[395058782,1764385848154,-500.0,0.00020555,2]
[395058783,1764385848163,-283.49744027,0.00020594,2]
[395058784,1764385848174,-748.9897129,0.00020655,2]
[395058785,1764385848185,-2000.0,0.000207,2]
[395058786,1764385848194,-2000.0,0.000207,2]
[395058787,1764385848204,-500.0,0.00020752,2]
[395058788,1764385848221,-1000.0,0.00020795,2]
[395058789,1764385848231,-168.3888056,0.00020822,2]
[395058790,1764385848241,-215.0738,0.00020837,2]
[395058791,1764385848251,-204.43310328,0.00020839,2]
[395058792,1764385848259,-200.0,0.00020839,2]
[395058793,1764385848269,-306.48,0.00020951,2]
[395058794,1764385848278,-3503.3,0.00020951,2]
[395058795,1764385848287,-150.99,0.00020951,2]
[395058796,1764385848296,-9605.1,0.00020951,2]
[395058797,1764385848304,-999.99,0.00020951,2]
[395058798,1764385848314,-151.0,0.00020997,2]
[395058799,1764385848324,-160.0,0.00021,7]
[395058800,1764385848333,-301.75,0.00021,20]
[395058801,1764385848345,-39938.9646168,0.00021,2]
[395058802,1764385848354,-350.0,0.00021,2]
[395058803,1764385848363,-20292.301519,0.00021,2]
[395058804,1764385848372,-5001.59834,0.00021,2]
[395058805,1764385848381,-151.0,0.00021159,2]
[395058806,1764385848389,-346.92554585,0.00021159,2]
[395058807,1764385848398,-309.29654756,0.00021159,2]
[395058808,1764385848407,-165.98,0.00021198,2]
[395058809,1764385848416,-174.61919141,0.0002137,2]
[395058810,1764385848425,-200.0,0.00021387,2]
[395058811,1764385848434,-287.07079723,0.00021414,2]
[395058812,1764385848443,-1040.2340199,0.0002156,5]
[395058813,1764385848452,-1226.33080616,0.0002156,5]
[395058814,1764385848461,-1437.59368086,0.00021567,2]
[395058815,1764385848470,-1000.0,0.00021568,2]
[395058816,1764385848481,-229.96,0.000217,2]
[395058817,1764385848490,-151.0,0.00021725,2]
[395058818,1764385848500,-831.0,0.00021725,2]
[395058819,1764385848509,-831.0,0.00021725,2]
[395058820,1764385848519,-831.0,0.00021725,2]
[395058821,1764385848529,-831.0,0.00021725,2]
[395058822,1764385848538,-831.0,0.00021725,2]
[395058823,1764385848548,-717.79196975,0.00021725,2]
[395058824,1764385848559,-153.0,0.00021725,2]
[395058825,1764385848573,-153.0,0.00021725,2]
[395058826,1764385848584,-153.0,0.00021725,2]
[395058827,1764385848596,-153.0,0.00021725,2]
[395058828,1764385848606,-153.0,0.00021725,2]
[395058829,1764385848615,-153.0,0.00021725,2]
[395058830,1764385848624,-153.0,0.00021725,2]
[395058831,1764385848633,-153.0,0.00021725,2]
[395058832,1764385848642,-157.0,0.00021725,2]
[395058833,1764385848651,-152.0,0.00021725,2]
[395058834,1764385848661,-152.0,0.00021725,2]
[395058835,1764385848671,-240.21098282,0.00021725,2]
[395058836,1764385848680,-4928.34,0.0002187,2]
[395058837,1764385848690,-2000.0,0.0002189,2]
[395058838,1764385848699,-2000.0,0.0002189,2]
[395058839,1764385848708,-164.26,0.00021918,5]
[395058840,1764385848718,-5000.0,0.00021918,2]
[395058841,1764385848728,-500.0,0.00021918,2]
[395058842,1764385848738,-308.43611506,0.00021918,2]
[395058843,1764385848747,-181.08010149,0.00021918,2]
[395058844,1764385848756,-200.0,0.00021935,2]
[395058845,1764385848765,-500.0,0.0002197,2]
[395058846,1764385848775,-1000.0,0.0002197,2]
[395058847,1764385848784,-1000.0,0.0002197,2]
[395058848,1764385848793,-500.0,0.0002197,2]
[395058849,1764385848802,-500.0,0.0002197,2]
[395058850,1764385848811,-1000.0,0.0002197,2]
[395058851,1764385848821,-1000.0,0.0002197,2]
[395058852,1764385848830,-500.0,0.0002197,2]
[395058853,1764385848840,-300.0,0.00022,2]
[395058854,1764385848849,-300.0,0.00022,2]
[395058855,1764385848859,-300.0,0.00022,2]
[395058856,1764385848868,-300.0,0.00022,2]
[395058857,1764385848878,-300.0,0.00022,2]
[395058858,1764385848887,-300.0,0.00022,2]
[395058859,1764385848896,-300.0,0.00022,2]
[395058860,1764385848905,-300.0,0.00022,2]
[395058861,1764385848914,-300.0,0.00022,2]
[395058862,1764385848923,-300.0,0.00022,2]
[395058863,1764385848934,-300.0,0.00022,2]
[395058864,1764385848942,-300.0,0.00022,2]
[395058865,1764385848951,-300.0,0.00022,2]
[395058866,1764385848960,-300.0,0.00022,2]
[395058867,1764385848969,-300.0,0.00022,2]
[395058868,1764385848978,-300.0,0.00022,2]
[395058869,1764385848987,-300.0,0.00022,2]
[395058870,1764385848996,-300.0,0.00022,2]
[395058871,1764385849005,-300.0,0.00022,2]
[395058872,1764385849014,-300.0,0.00022,2]
[395058873,1764385849024,-2500.91656755,0.00022,4]
[395058874,1764385849033,-151.0,0.00022,2]
[395058875,1764385849042,-27560.38,0.00022,7]
[395058876,1764385849051,-427.45964135,0.00022,7]
[395058877,1764385849060,-200.0,0.00022,2]
[395058878,1764385849070,-152.0,0.00022,2]
[395058879,1764385849079,-152.0,0.00022,2]
[395058880,1764385849088,-152.0,0.00022,2]
[395058881,1764385849099,-152.0,0.00022,2]
[395058882,1764385849110,-152.0,0.00022,2]
[395058883,1764385849120,-152.0,0.00022,2]
[395058884,1764385849130,-152.0,0.00022,2]
[395058885,1764385849139,-152.0,0.00022,2]
[395058886,1764385849149,-152.0,0.00022,2]
[395058887,1764385849158,-152.0,0.00022,2]
[395058888,1764385849170,-152.0,0.00022,2]
[395058889,1764385849181,-152.0,0.00022,2]
[395058890,1764385849191,-152.0,0.00022,2]
[395058891,1764385849201,-152.0,0.00022,2]
[395058892,1764385849213,-152.0,0.00022,2]
[395058893,1764385849223,-500.0,0.00022059,2]
[395058894,1764385849233,-481.0,0.00022075,2]
[395058895,1764385849243,-379.31286521,0.00022152,2]
[395058896,1764385849253,-165.98,0.00022162,2]
[395058897,1764385849263,-200.0,0.0002222,2]
[395058898,1764385849272,-500.0,0.00022333,2]
[395058899,1764385849283,-500.0,0.00022343,2]
[395058900,1764385849294,-200.0,0.00022442,2]
[395058901,1764385849508,-187.78006525,0.00022466,2]
[395058902,1764385849520,-200.0,0.00022483,2]
[395058903,1764385849530,-500.0,0.00022497,2]
[395058904,1764385849540,-1000.0,0.000225,7]
[395058905,1764385849549,-151.0,0.00022528,2]
[395058906,1764385849558,-359.76179104,0.00022528,2]
[395058907,1764385849568,-320.74051982,0.00022528,2]
[395058908,1764385849577,-537.19,0.00022562,2]
[395058909,1764385849586,-6474.22,0.00022562,2]
[395058910,1764385849595,-200.0,0.00022667,2]
[395058911,1764385849604,-970.0,0.000227,2]
[395058912,1764385849614,-304.0,0.000227,2]